bitfinex/quotes_ETHUSD_20240604
["timestamp","ask_amount","ask_price","bid_price","bid_amount"]
[1717526688578,2.62027,3816.4,3815.7,0.782]
[1717526688976,2.62027,3816.4,3815.9,0.782]
[1717526689415,2.62027,3816.4,3815.7,0.782]
[1717526692017,2.62027,3816.4,3815.9,0.782]
[1717526692848,2.62049,3816.1,3815.2,2.62103]
[1717526693019,2.62049,3816.1,3816.0,0.05201379]
[1717526693219,2.62049,3816.1,3815.3,0.782]
[1717526693411,2.62049,3816.1,3816.0,0.05188589]
[1717526693606,3.3183887,3816.1,3815.3,0.782]
[1717526694144,2.62064,3815.9,3815.3,0.782]
[1717526697012,2.3302,3815.8,3815.2,2.62103]
[1717526697212,2.3302,3815.8,3815.2,3.40303]
[1717526699443,2.62076,3815.7,3814.9,2.62125]
[1717526699814,2.62076,3815.7,3815.1,0.782]
[1717526700019,3.115856,3815.7,3815.1,0.782]
[1717526700710,3.115856,3815.7,3815.3,0.782]
[1717526700920,2.62076,3815.7,3815.3,0.782]
[1717526701519,2.62076,3815.7,3814.9,2.62125]
[1717526701732,2.62076,3815.7,3815.3,0.782]
[1717526702186,2.62076,3815.7,3815.4,0.05083448]
[1717526702840,2.3302,3815.8,3815.4,0.05083448]
[1717526703042,2.3302,3815.8,3815.3,0.782]
[1717526703865,2.3302,3815.8,3815.6,0.782]
[1717526704447,2.62058,3816.0,3815.6,0.782]
[1717526705446,7.3,3816.2,3815.8,0.782]
[1717526705666,5.06618,3816.3,3815.8,0.782]
[1717526706744,5.06618,3816.3,3815.5,0.782]
[1717526706745,2.6205,3816.1,3815.5,0.782]
[1717526706965,2.6205,3816.1,3815.7,0.782]
[1717526707576,2.62063,3815.9,3815.3,2.621]
[1717526707879,2.2796,3815.8,3815.4,0.05093303]
[1717526710579,2.2796,3815.8,3815.5,0.782]
[1717526711075,2.2796,3815.8,3815.6,0.05086267]
[1717526711279,2.2796,3815.8,3815.3,0.782]
[1717526711575,2.2796,3815.8,3815.7,0.05082435]
[1717526711781,2.769623,3815.8,3815.2,2.62106]
[1717526712085,2.2796,3815.8,3815.2,2.62106]
[1717526712235,2.2796,3815.8,3815.3,0.05097762]
[1717526714162,2.62076,3815.7,3815.3,0.05097762]
[1717526714716,2.62076,3815.7,3815.4,0.05088773]
[1717526715040,2.62076,3815.7,3814.9,3.40326]
[1717526715380,2.62076,3815.7,3815.5,0.05082879]
[1717526715590,5.27106545,3815.7,3814.9,2.62126]
[1717526715786,2.62076,3815.7,3815.0,0.782]
[1717526715947,2.62076,3815.7,3815.0,0.83311438]
[1717526717448,2.57076,3815.7,3815.0,0.83311438]
[1717526718997,2.6209,3815.5,3815.0,0.05111438]
[1717526720455,2.3035,3815.4,3815.0,0.05111438]
[1717526721764,2.382,3815.7,3815.0,0.05111438]
[1717526721973,22.19072,3815.8,3815.1,5.74696]
[1717526722391,22.19072,3815.8,3815.2,0.05117697]
[1717526723201,22.19072,3815.8,3815.3,2.62101]
[1717526723620,22.19072,3815.8,3815.3,3.40301]
[1717526724110,2.62072,3815.8,3815.3,3.40301]
[1717526725861,2.62072,3815.8,3815.3,2.62101]
[1717526726359,2.62072,3815.8,3815.1,0.782]
[1717526726360,5.27102545,3815.8,3815.0,3.16276336]
[1717526726565,6.05302545,3815.8,3815.0,2.62117]
[1717526726892,5.27102545,3815.8,3815.1,0.05119725]
[1717526727095,5.27102545,3815.8,3815.0,2.62117]
[1717526727259,2.5045415,3815.7,3815.0,2.62117]
[1717526727603,2.5045415,3815.7,3815.1,0.05110859]
[1717526727964,2.5045415,3815.7,3815.0,2.62117]
[1717526728156,2.62072,3815.8,3815.0,3.40317]
[1717526728360,2.62072,3815.8,3815.2,0.782]
[1717526728587,2.62072,3815.8,3815.2,3.40306]
[1717526728914,19.57,3815.9,3815.6,0.782]
[1717526729263,19.57,3815.9,3815.6,3.40279]
[1717526729901,19.57,3816.2,3815.7,0.0509716]
[1717526730106,23.44044085,3816.3,3815.6,2.62079]
[1717526730405,0.56616476,3816.2,3815.6,3.972089]
[1717526730779,23.44038106,3816.3,3815.7,0.05085254]
[1717526731107,23.44038106,3816.3,3815.6,3.972089]
[1717526733005,1.57268106,3816.4,3815.8,3.40266]
[1717526733304,26.87,3816.5,3815.8,3.40266]
[1717526733305,28.44268106,3816.5,3816.1,2.3172]
[1717526733510,26.87,3816.5,3816.2,0.782]
[1717526733888,26.87,3816.5,3816.1,2.3172]
[1717526734088,26.87,3816.5,3816.1,0.29391204]
[1717526734315,26.87,3816.5,3815.6,2.2717]
[1717526734316,2.62027,3816.4,3815.6,2.2717]
[1717526734471,2.62027,3816.4,3815.6,3.0537]
[1717526734673,2.62027,3816.4,3815.7,0.05085254]
[1717526734872,2.62027,3816.4,3815.6,3.0537]
[1717526735126,2.62027,3816.4,3815.8,0.05081422]
[1717526735417,2.62027,3816.4,3815.5,2.62087]
[1717526735418,5.40205668,3816.4,3815.5,2.62087]
[1717526735793,3.40227,3816.4,3815.6,0.05089085]
[1717526735989,3.40227,3816.4,3815.5,2.62087]
[1717526737919,2.62027,3816.4,3815.5,2.62087]
[1717526740280,2.62027,3816.4,3815.6,0.05089085]
[1717526740718,2.62027,3816.4,3815.7,2.62074]
[1717526740893,2.62027,3816.4,3815.7,2.6715988]
[1717526741325,2.62027,3816.4,3815.8,0.26715988]
[1717526741643,2.62027,3816.4,3815.9,2.6206]
[1717526744132,9.6887,3816.5,3815.9,2.6206]
[1717526744640,2.3887,3816.5,3815.9,2.6206]
[1717526747039,2.4005,3816.8,3816.1,2.62046]
[1717526747205,5.02053,3816.8,3816.1,2.62046]
[1717526747601,2.3233,3816.7,3816.1,2.62046]
[1717526748529,2.3233,3816.7,3815.8,2.62066]
[1717526748917,2.62013,3816.6,3815.8,2.62066]
[1717526750957,2.421,3816.3,3815.5,2.62086]
[1717526751620,2.421,3816.3,3815.7,2.62074]
[1717526752959,2.421,3816.3,3815.8,0.05072025]
[1717526753161,2.421,3816.3,3815.7,2.62074]
[1717526753462,2.421,3816.3,3815.9,0.05068193]
[1717526753749,2.421,3816.3,3815.7,2.62074]
[1717526753915,2.421,3816.3,3816.0,0.05064363]
[1717526754118,2.421,3816.3,3815.7,2.62074]
[1717526754313,2.421,3816.3,3816.1,0.05060532]
[1717526754518,2.421,3816.3,3815.7,2.62074]
[1717526754722,2.421,3816.3,3816.2,0.05056701]
[1717526754921,2.421,3816.3,3815.7,2.62074]
[1717526755163,2.421,3816.3,3816.2,0.05056701]
[1717526755460,2.421,3816.3,3815.7,2.62074]
[1717526755867,2.421,3816.3,3815.9,2.62061]
[1717526756535,22.19007,3816.7,3815.9,2.62061]
[1717526756748,2.3962,3816.6,3815.9,2.62061]
[1717526756955,2.3962,3816.6,3815.9,2.882671]
[1717526757156,2.9623376,3816.6,3815.9,2.882671]
[1717526759490,2.62026,3816.5,3815.6,2.62077]
[1717526759629,2.3962,3816.4,3815.7,0.783]
[1717526759939,2.3962,3816.4,3815.8,0.05038471]
[1717526760137,2.3962,3816.4,3815.7,0.783]
[1717526760471,2.3962,3816.4,3815.9,0.05042209]
[1717526760674,0.579946,3816.3,3815.8,0.0504604]
[1717526760976,0.783,3816.2,3815.6,2.62077]
[1717526761325,0.56616034,3816.2,3815.6,2.62077]
[1717526761526,4.91468,3816.1,3815.3,2.62099]
[1717526761828,4.91468,3816.1,3815.7,0.05063701]
[1717526762023,4.91468,3816.1,3815.3,2.62099]
[1717526762252,4.91468,3816.1,3815.8,0.05046277]
[1717526762253,0.569768,3816.0,3815.8,0.05046277]
[1717526762466,0.569768,3816.0,3815.3,3.40399]
[1717526762645,4.91468,3816.1,3815.3,3.40399]
[1717526762844,4.91468,3816.1,3815.4,0.05039359]
[1717526764441,2.4306,3816.0,3815.4,0.05039359]
[1717526764828,2.4306,3816.0,3815.3,2.62099]
[1717526765029,2.4306,3816.0,3815.5,0.05084861]
[1717526765345,3.014008,3816.0,3815.3,2.62099]
[1717526765541,3.014008,3816.0,3815.6,0.05083091]
[1717526765867,3.014008,3816.0,3815.3,2.62099]
[1717526766228,3.014008,3816.0,3815.4,0.05090754]
[1717526766458,2.62061,3815.9,3815.4,0.05090754]
[1717526766654,2.62061,3815.9,3815.2,0.783]
[1717526767139,2.4124,3815.8,3815.3,0.05094586]
[1717526767350,2.4124,3815.8,3815.3,0.783]
[1717526767553,2.4124,3815.8,3815.4,0.05090754]
[1717526768538,2.62042,3816.2,3815.5,0.783]
[1717526768791,2.4124,3816.1,3815.7,0.783]
[1717526769483,2.4124,3816.1,3815.8,0.05078329]
[1717526769843,2.62042,3816.2,3815.6,2.62079]
[1717526770184,2.62042,3816.2,3815.7,0.05084222]
[1717526770557,7.3,3816.4,3815.7,0.05084222]
[1717526770744,10.73330545,3816.4,3815.6,2.62079]
[1717526770947,9.95030545,3816.4,3815.6,3.40379]
[1717526771179,9.95030545,3816.4,3815.7,0.05084222]
[1717526771508,9.95030545,3816.4,3815.6,3.40379]
[1717526771990,2.62034,3816.3,3815.7,0.05071851]
[1717526772190,1.48719455,3816.2,3815.6,2.62079]
[1717526772343,1.48719455,3816.2,3815.8,0.05079354]
[1717526772543,1.48719455,3816.2,3815.6,2.62079]
[1717526772745,1.48719455,3816.2,3815.9,0.05087931]
[1717526773055,1.48719455,3816.2,3815.6,2.62079]
[1717526773240,2.62034,3816.3,3815.6,2.62079]
[1717526773442,2.62034,3816.3,3815.8,2.62068]
[1717526778346,2.65030545,3816.4,3815.3,2.91389336]
[1717526778347,2.62049,3816.1,3815.5,2.62083]
[1717526778690,2.4647,3816.0,3815.9,0.04924863]
[1717526778859,2.62068,3815.9,3815.2,2.62103]
[1717526779240,2.62068,3815.9,3815.3,0.04946599]
[1717526780079,2.62068,3815.9,3815.3,0.83246599]
[1717526780259,2.4047,3815.8,3815.3,0.04946599]
[1717526782185,2.62068,3815.9,3815.3,0.83246599]
[1717526782389,2.62068,3815.9,3815.3,1.42381894]
[1717526782954,2.62068,3815.9,3815.5,0.783]
[1717526783483,2.62068,3815.9,3815.3,0.783]
[1717526783659,2.62068,3815.9,3815.2,2.62103]
[1717526783990,2.62068,3815.9,3815.3,0.83260219]
[1717526784193,2.62068,3815.9,3815.3,0.783]
[1717526785592,2.62068,3815.9,3815.4,2.62095]
[1717526786113,19.57,3816.0,3815.4,2.62095]
[1717526786259,19.57,3816.0,3815.5,0.783]
[1717526786454,19.57,3816.0,3815.5,0.83249735]
[1717526787863,19.57,3816.0,3815.6,2.62081]
[1717526788064,19.57,3816.0,3815.7,0.783]
[1717526788268,19.57,3816.0,3815.9,0.783]
[1717526788502,2.62046,3816.2,3815.9,0.783]
[1717526788503,22.19046,3816.2,3815.9,0.783]
[1717526788711,19.57,3816.2,3815.9,1.364151]
[1717526789008,19.57,3816.2,3816.1,0.783]
[1717526789678,19.57,3816.2,3815.9,1.364151]
[1717526789919,19.57,3816.2,3816.0,0.04930579]
[1717526790249,19.57,3816.2,3815.9,0.783]
[1717526791140,19.57,3816.2,3815.4,0.54159336]
[1717526791141,2.4948,3816.1,3815.5,2.62085]
[1717526791318,2.4948,3816.1,3816.0,0.04926463]
[1717526791507,3.96909376,3816.1,3815.5,2.62085]
[1717526791711,2.4948,3816.1,3816.0,0.04926463]
[1717526791911,2.4948,3816.1,3815.6,0.783]
[1717526792230,2.4948,3816.1,3816.0,0.04926463]
[1717526792429,2.4948,3816.1,3815.6,0.783]
[1717526792832,2.4948,3816.1,3815.7,0.04937956]
[1717526793151,19.57,3816.2,3815.7,0.04937956]
[1717526793959,19.57,3816.2,3815.7,2.67009956]
[1717526794127,19.57,3816.2,3815.8,0.783]
[1717526794456,2.62036,3816.3,3815.8,0.83222508]
[1717526794832,2.62036,3816.3,3815.8,0.783]
[1717526796219,5.27066545,3816.3,3815.7,2.62072]
[1717526798461,2.62036,3816.3,3815.7,2.62072]
[1717526801759,2.62036,3816.3,3815.8,0.783]
[1717526802239,19.57,3816.4,3815.9,2.62057]
[1717526803138,19.57,3816.4,3816.0,0.783]
[1717526803449,19.57,3816.4,3815.9,2.62057]
[1717526804572,5.00736,3816.3,3815.6,2.62079]
[1717526804888,5.00736,3816.3,3815.6,3.40379]
[1717526805072,5.00736,3816.3,3815.7,0.04920935]
[1717526805437,5.00736,3816.3,3815.6,3.40379]
[1717526805837,5.00736,3816.3,3815.7,0.04920935]
[1717526806571,5.00736,3816.3,3815.6,3.40379]
[1717526806782,5.00736,3816.3,3815.8,0.04917104]
[1717526807071,5.00736,3816.3,3815.6,3.40379]
[1717526807448,5.00736,3816.3,3815.7,0.04920935]
[1717526807769,5.00736,3816.3,3815.6,3.40379]
[1717526808171,5.00736,3816.3,3815.7,0.04920935]
[1717526808479,5.00736,3816.3,3815.6,3.40379]
[1717526808789,5.00736,3816.3,3815.7,0.04920935]
[1717526809189,5.00736,3816.3,3815.6,3.40379]
[1717526809392,5.00736,3816.3,3815.8,0.04917104]
[1717526809687,5.00736,3816.3,3815.6,3.40379]
[1717526810052,5.00736,3816.3,3815.7,0.04920935]
[1717526810448,5.00736,3816.3,3815.6,3.40379]
[1717526810900,5.00736,3816.3,3815.7,0.04920935]
[1717526811192,5.00736,3816.3,3815.6,3.40379]
[1717526811694,5.00736,3816.3,3815.7,0.04920935]
[1717526812746,5.03730545,3816.3,3815.7,0.04920935]
[1717526812947,5.03730545,3816.3,3815.3,3.94556336]
[1717526813210,5.03730545,3816.3,3815.8,0.04912381]
[1717526813352,2.62054,3816.0,3815.3,3.40397]
[1717526813549,5.03730545,3816.3,3815.3,3.40397]
[1717526813550,2.62068,3815.9,3815.3,3.40397]
[1717526813752,2.62068,3815.9,3815.4,0.04922065]
[1717526815105,2.62075,3815.8,3815.4,0.04922065]
[1717526815305,2.62087,3815.6,3815.4,0.04922065]
[1717526815471,2.62087,3815.6,3815.0,3.94576336]
[1717526815678,2.62087,3815.6,3815.5,0.04938455]
[1717526815885,2.62087,3815.6,3815.0,3.94576336]
[1717526816092,2.62087,3815.6,3815.5,0.04929603]
[1717526816303,3.110607,3815.6,3815.0,3.16276336]
[1717526816621,3.110607,3815.6,3814.9,0.54159336]
[1717526816622,2.62087,3815.6,3814.9,0.54159336]
[1717526816778,2.62087,3815.6,3815.1,0.04942862]
[1717526816779,0.783,3815.6,3815.1,0.04942862]
[1717526816983,2.62099,3815.4,3814.8,0.54159336]
[1717526817291,2.62099,3815.4,3815.2,0.04939623]
[1717526817494,2.62099,3815.4,3814.7,3.40438]
[1717526817694,2.62099,3815.4,3815.3,0.04935791]
[1717526818173,2.62099,3815.4,3814.7,3.40438]
[1717526818376,2.62099,3815.4,3815.3,0.04935191]
[1717526818693,2.62099,3815.4,3814.7,3.40438]
[1717526819222,2.62099,3815.4,3814.8,0.04944033]
[1717526819382,2.62099,3815.4,3814.8,0.783]
[1717526819578,2.62099,3815.4,3814.9,0.04799313]
[1717526819784,2.62099,3815.4,3814.8,0.783]
[1717526820015,2.62099,3815.4,3815.0,0.0479548]
[1717526820217,2.62099,3815.4,3814.8,0.783]
[1717526820416,2.62099,3815.4,3815.1,0.04791648]
[1717526820720,2.62099,3815.4,3814.8,0.783]
[1717526820888,2.62099,3815.4,3815.2,0.04787816]
[1717526821089,2.62099,3815.4,3814.8,0.783]
[1717526821492,2.62099,3815.4,3814.9,0.04799313]
[1717526821680,2.62099,3815.4,3814.8,0.783]
[1717526822111,2.62099,3815.4,3814.9,0.04799313]
[1717526822297,2.6211,3815.2,3814.9,0.04799313]
[1717526822494,2.6211,3815.2,3814.4,3.16322336]
[1717526822495,2.6211,3815.2,3814.5,0.783]
[1717526822704,2.6211,3815.2,3815.0,0.0479548]
[1717526822886,2.6211,3815.2,3814.5,0.783]
[1717526823091,2.6211,3815.2,3815.1,0.04810136]
[1717526823315,3.20398,3815.2,3814.3,0.783]
[1717526823495,3.20398,3815.2,3814.5,0.783]
[1717526823883,3.20398,3815.2,3814.6,0.04837986]
[1717526824280,3.20398,3815.2,3814.4,0.783]
[1717526824623,3.20398,3815.2,3814.9,0.783]
[1717526824958,2.62123,3815.0,3814.9,0.783]
[1717526825945,2.62123,3815.0,3814.1,5.02002]
[1717526825946,2.2704,3814.9,3814.1,2.62182]
[1717526826103,2.2704,3814.9,3814.7,0.783]
[1717526826589,2.2704,3814.9,3814.1,2.62182]
[1717526826790,2.2704,3814.9,3814.8,0.783]
[1717526827139,4.92070545,3814.9,3814.8,0.783]
[1717526832301,22.19123,3815.0,3814.8,0.783]
[1717526832522,19.57,3815.1,3814.8,0.783]
[1717526832711,19.57,3815.1,3815.0,0.783]
[1717526832886,24.51287,3815.3,3815.0,0.783]
[1717526833088,19.57,3815.3,3815.2,0.783]
[1717526834870,24.63380545,3815.3,3814.5,2.62154]
[1717526835138,19.57,3815.3,3815.2,0.783]
[1717526835459,19.57,3815.5,3815.2,0.783]
[1717526835658,19.57,3815.5,3815.4,0.783]
[1717526841269,21.9835,3815.6,3815.4,0.783]
[1717526841467,2.4887,3815.5,3814.5,2.62155]
[1717526841782,2.62107,3815.3,3815.2,0.783]
[1717526844480,4.89557,3815.3,3815.2,0.783]
[1717526844684,2.62109,3815.2,3815.0,0.783]
[1717526845512,2.2745,3815.3,3814.2,2.62174]
[1717526845513,2.62127,3815.0,3814.2,2.62174]
[1717526845805,2.62127,3815.0,3814.9,0.783]
[1717526846010,5.27157545,3815.0,3814.9,0.783]
[1717526846193,5.27157545,3815.0,3814.2,2.62174]
[1717526846535,2.62127,3815.0,3814.9,0.783]
[1717526848111,2.62127,3815.0,3814.2,2.62174]
[1717526848423,2.62127,3815.0,3814.8,0.783]
[1717526849593,2.62138,3814.8,3813.9,4.88626]
[1717526849800,2.62138,3814.8,3814.7,0.783]
[1717526851821,2.62138,3814.8,3814.1,2.62181]
[1717526852034,2.62138,3814.8,3814.7,0.82876208]
[1717526852208,2.62138,3814.8,3814.7,0.783]
[1717526854345,19.57,3815.0,3814.7,0.783]
[1717526854544,19.57,3815.0,3814.9,0.783]
[1717526854702,19.57,3815.0,3814.6,2.4621]
[1717526854902,19.57,3815.0,3814.9,0.783]
[1717526858875,22.19097,3815.4,3814.9,0.783]
[1717526859069,22.19097,3815.4,3815.2,0.783]
[1717526859250,2.62097,3815.4,3815.2,0.783]
[1717526860958,19.57,3815.6,3815.2,0.783]
[1717526861273,19.57,3815.6,3815.4,0.783]
[1717526864686,2.62081,3815.7,3815.4,0.783]
[1717526864992,2.62081,3815.7,3815.6,0.783]
[1717526865153,2.4051,3815.8,3815.6,0.783]
[1717526865553,5.0258,3815.8,3815.6,0.783]
[1717526865767,2.6207,3815.8,3815.6,0.783]
[1717526868250,3.11871,3815.8,3815.6,0.783]
[1717526869181,2.62086,3815.6,3814.8,2.62134]
[1717526869553,2.62086,3815.6,3815.4,0.783]
[1717526871759,5.02051,3815.4,3815.3,0.783]
[1717526871956,5.522561,3815.4,3815.3,0.783]
[1717526872153,2.62111,3815.2,3814.5,2.62153]
[1717526872389,2.62111,3815.2,3815.1,0.783]
[1717526872796,2.62126,3815.0,3814.2,5.66032336]
[1717526873303,4.95486,3815.0,3814.8,0.783]
[1717526873595,0.495486,3814.9,3814.8,0.783]
[1717526875323,0.495486,3814.9,3814.2,5.11873]
[1717526875461,4.95486,3815.0,3814.8,0.783]
[1717526878804,2.6214,3814.8,3814.2,2.2871]
[1717526878966,2.6214,3814.8,3814.7,0.783]
[1717526880697,19.57,3815.2,3814.7,0.783]
[1717526880698,2.62119,3815.1,3814.7,0.783]
[1717526880896,2.62119,3815.1,3814.9,0.783]
[1717526883664,2.621,3815.4,3814.9,0.783]
[1717526883865,2.621,3815.4,3815.3,0.783]
[1717526884371,2.621,3815.4,3814.7,2.4595]
[1717526884572,2.621,3815.4,3815.2,0.783]
[1717526884909,5.07324,3815.4,3815.2,0.783]
[1717526885123,2.621,3815.4,3815.2,0.783]
[1717526886070,2.62075,3815.7,3815.2,0.783]
[1717526886302,2.62075,3815.7,3815.6,0.783]
[1717526888211,2.62075,3815.7,3815.5,0.783]
[1717526890209,4.96690665,3815.7,3814.9,2.4375]
[1717526890375,4.96690665,3815.7,3815.3,0.783]
[1717526892089,2.4189,3815.4,3814.8,2.62131]
[1717526892300,2.4189,3815.4,3815.2,0.783]
[1717526892500,3.15749667,3815.4,3815.2,0.783]
[1717526893076,2.62102,3815.3,3815.2,0.783]
[1717526893883,2.62102,3815.3,3814.6,2.2669]
[1717526894098,2.62102,3815.3,3815.2,0.04241615]
[1717526894293,2.62102,3815.3,3815.1,0.783]
[1717526894493,3.125012,3815.3,3814.9,0.783]
[1717526894796,2.62119,3815.1,3814.9,0.783]
[1717526895207,2.62119,3815.1,3815.0,0.04111682]
[1717526896120,2.62119,3815.1,3815.0,0.82411682]
[1717526896325,2.62119,3815.1,3815.0,0.783]
[1717526896484,2.62119,3815.1,3815.0,0.82387914]
[1717526897091,2.62119,3815.1,3815.0,0.783]
[1717526898326,19.57,3815.3,3815.0,0.783]
[1717526899022,2.62109,3815.2,3815.0,0.783]
[1717526900093,19.57,3815.3,3815.0,3.1279]
[1717526900297,19.57,3815.3,3815.2,0.783]
[1717526902394,19.57,3815.3,3815.2,0.82404017]
[1717526902839,19.57,3815.6,3815.2,0.82404017]
[1717526903053,22.19083,3815.6,3815.2,0.82404017]
[1717526903345,22.19083,3815.6,3815.2,0.783]
[1717526906921,22.19083,3815.6,3815.3,0.04037421]
[1717526907110,22.19083,3815.6,3815.4,0.783]
[1717526907741,19.57,3815.6,3815.4,0.783]
[1717526908721,19.57,3815.8,3815.4,0.783]
[1717526908928,19.57,3815.8,3814.7,0.54159336]
[1717526908929,19.57,3815.8,3815.6,0.783]
[1717526909110,19.57,3815.8,3815.7,0.783]
[1717526910536,19.57,3815.8,3815.7,1.37048]
[1717526910746,7.3,3816.2,3815.8,2.62066]
[1717526910942,2.62024,3816.5,3816.1,0.783]
[1717526911126,2.62024,3816.5,3816.3,0.783]
[1717526914248,2.62024,3816.5,3816.2,0.783]
[1717526915028,2.62024,3816.5,3816.0,0.783]
[1717526915551,2.62024,3816.5,3815.8,5.06226]
[1717526915872,2.62024,3816.5,3816.1,0.783]
[1717526916233,24.59842,3816.8,3816.3,0.783]
[1717526916437,3.0,3816.7,3816.3,0.783]
[1717526916641,5.65030545,3816.7,3816.3,0.783]
[1717526919230,22.19002,3816.8,3816.6,0.783]
[1717526919431,2.62002,3816.8,3816.6,0.783]
[1717526920142,19.57,3816.9,3816.6,0.783]
[1717526920340,19.57,3816.9,3816.8,0.783]
[1717526923491,19.57,3817.1,3816.8,0.783]
[1717526923666,19.57,3817.1,3817.0,0.783]
[1717526926290,19.57,3817.1,3817.0,0.82175722]
[1717526926468,19.57,3817.1,3817.0,1.40626894]
[1717526927362,19.57,3817.1,3817.0,0.82175722]
[1717526929105,19.57,3817.5,3817.0,3.44156722]
[1717526929303,19.57,3817.5,3817.4,0.783]
[1717526929506,19.57,3817.6,3817.4,0.783]
[1717526930789,19.57,3817.6,3817.1,0.783]
[1717526930999,2.218941,3817.5,3817.1,0.783]
[1717526932296,19.57,3817.6,3817.1,0.783]
[1717526934267,19.57,3817.6,3817.3,0.783]
[1717526935003,2.61941,3817.7,3817.3,0.783]
[1717526941616,2.61952,3817.5,3817.0,2.61981]
[1717526941820,2.61952,3817.5,3817.3,0.783]
[1717526942033,4.838472,3817.5,3817.3,0.783]
[1717526942319,4.838472,3817.5,3817.2,0.783]
[1717526942681,5.07508,3817.3,3816.4,5.0412]
[1717526942891,5.07508,3817.3,3816.7,0.783]
[1717526943186,2.61981,3817.1,3816.2,2.421]
[1717526943523,2.4554,3816.8,3816.1,2.62045]
[1717526943717,2.4554,3816.8,3816.4,0.783]
[1717526944120,2.4554,3816.8,3815.8,5.04165]
[1717526944121,2.62007,3816.7,3815.8,5.04165]
[1717526944326,2.4554,3816.8,3815.1,2.421]
[1717526944492,7.54554,3816.7,3816.0,0.783]
[1717526944695,0.24554,3816.7,3816.0,0.783]
[1717526944892,0.81167818,3816.7,3816.0,0.783]
[1717526945093,0.24554,3816.7,3816.2,0.783]
[1717526945683,2.62027,3816.4,3816.2,0.783]
[1717526945883,2.906851,3816.4,3815.5,2.62087]
[1717526946083,2.906851,3816.4,3815.6,0.03919768]
[1717526946292,2.62041,3816.2,3815.6,0.03919768]
[1717526946519,2.62041,3816.2,3815.8,0.783]
[1717526947389,2.62041,3816.2,3815.1,5.0421]
[1717526947724,3.10469223,3816.2,3815.8,0.783]
[1717526947925,3.10469223,3816.2,3816.0,0.783]
[1717526948427,3.10469223,3816.2,3815.3,2.62099]
[1717526948595,2.62041,3816.2,3816.0,0.783]
[1717526952890,2.62041,3816.2,3816.1,0.03893389]
[1717526953526,2.62041,3816.2,3815.9,0.783]
[1717526953687,2.62041,3816.2,3816.0,0.0389722]
[1717526954828,2.62041,3816.2,3815.9,0.783]
[1717526955034,2.62041,3816.2,3816.1,0.03765633]
[1717526955201,2.62041,3816.2,3816.0,0.03769463]
[1717526955565,2.62041,3816.2,3816.1,0.82075123]
[1717526958094,2.62022,3816.5,3816.1,0.82075123]
[1717526958334,2.62022,3816.5,3816.4,0.783]
[1717526958888,2.62022,3816.5,3816.4,0.82100063]
[1717526959353,2.62022,3816.5,3816.4,0.783]
[1717526963665,9.556,3816.8,3816.4,0.82103363]
[1717526963666,9.92003,3816.8,3816.4,0.82103363]
[1717526963881,3.0,3816.7,3816.6,0.783]
[1717526964799,3.0,3816.7,3816.6,0.82095703]
[1717526965289,2.62003,3816.8,3816.6,0.82095703]
[1717526965630,2.62003,3816.8,3816.6,0.783]
[1717526966793,3.0,3817.1,3816.6,0.783]
[1717526966794,5.61983,3817.1,3816.6,0.783]
[1717526967072,29.124,3817.4,3816.5,2.3111]
[1717526967073,19.57,3817.3,3816.9,0.783]
[1717526967380,19.57,3817.3,3817.1,0.783]
[1717526970387,2.61954,3817.5,3817.1,0.783]
[1717526977315,3.0,3817.7,3817.1,0.783]
[1717526977316,2.61968,3817.3,3817.1,0.783]
[1717526979761,2.61981,3817.1,3817.0,0.783]
[1717526980062,2.61981,3817.1,3817.0,0.82040656]
[1717526982271,2.61981,3817.1,3817.0,0.783]
[1717526983273,2.61981,3817.1,3816.5,4.93128]
[1717526983474,2.61981,3817.1,3816.9,0.783]
[1717526996107,2.61981,3817.1,3815.8,2.62062]
[1717526996108,5.067191,3817.1,3816.2,2.62034]
[1717526996293,2.61994,3816.9,3816.5,0.783]
[1717526996686,2.61994,3816.9,3816.2,2.62034]
[1717526997005,2.61994,3816.9,3816.6,0.783]
[1717526997161,3.53200892,3816.9,3816.6,0.783]
[1717526998868,5.67036102,3816.9,3816.6,0.783]
[1717526999079,2.62006,3816.7,3816.6,0.783]
[1717527001316,2.62006,3816.7,3816.6,0.783]
[1717527003998,19.57,3816.9,3816.6,0.783]
[1717527004170,19.57,3816.9,3816.8,0.783]
[1717527005281,19.57,3817.1,3816.8,3.147]
[1717527005488,19.57,3817.1,3817.0,0.783]
[1717527007607,19.57,3817.1,3817.0,1.359703]
[1717527007977,19.57,3817.1,3817.0,1.39718674]
[1717527009883,19.57,3817.1,3817.0,0.82048374]
[1717527010418,19.57,3817.1,3817.0,0.783]
[1717527010783,19.57,3817.1,3817.0,0.82048374]
[1717527011212,26.87,3817.6,3817.1,2.61978]
[1717527011521,26.87,3817.6,3817.5,0.783]
[1717527011700,19.57,3817.8,3817.5,0.783]
[1717527011898,21.97520205,3817.8,3817.5,0.783]
[1717527012423,4.19134779,3817.9,3817.7,0.783]
[1717527012721,19.57,3818.0,3817.7,0.783]
[1717527012917,19.57,3818.0,3817.9,0.783]
[1717527015923,19.57,3818.0,3817.9,3.1995]